bitfinex/quotes_ETHUSD_20251124
["timestamp","ask_amount","ask_price","bid_price","bid_amount"]
[1763980377256,0.002,2804.5,2804.4,16.06452495]
[1763980377424,0.002,2804.5,2804.4,12.30052495]
[1763980377622,0.002,2804.5,2804.4,10.91261595]
[1763980377823,0.002,2804.5,2804.4,5.84255395]
[1763980378023,0.002,2804.5,2804.4,15.7055932]
[1763980378267,0.002,2804.5,2804.4,5.84255395]
[1763980378552,0.002,2804.5,2804.4,8.16055895]
[1763980378856,0.002,2804.5,2804.4,8.06055895]
[1763980379041,0.002,2804.5,2804.4,18.84226795]
[1763980380025,0.002,2804.5,2804.4,23.25703895]
[1763980380225,0.002,2804.5,2804.4,22.58518595]
[1763980380457,0.002,2804.5,2804.4,11.31400995]
[1763980380759,0.002,2804.5,2804.4,1.87122482]
[1763980381076,0.002,2804.5,2804.3,0.1]
[1763980381356,0.002,2804.5,2804.4,5.39366025]
[1763980381654,0.002,2804.5,2804.4,4.12096989]
[1763980381821,0.002,2804.5,2804.4,1.31249664]
[1763980382023,0.002,2804.5,2803.9,0.001]
[1763980382259,0.002,2804.5,2804.2,0.1]
[1763980382827,0.002,2804.5,2803.9,0.001]
[1763980386939,0.0012,2804.5,2803.9,0.001]
[1763980388867,0.0012,2804.5,2803.9,0.03666461]
[1763980389043,0.0012,2804.5,2803.9,0.001]
[1763980390759,0.0012,2804.5,2803.9,0.101]
[1763980391546,0.0012,2804.5,2804.3,0.1]
[1763980392035,0.0012,2804.5,2804.4,0.1]
[1763980392236,0.0012,2804.5,2803.9,0.001]
[1763980392463,0.0012,2804.5,2804.0,0.405504]
[1763980392666,0.0012,2804.5,2804.2,0.405504]
[1763980392968,0.0012,2804.5,2804.1,0.39728501]
[1763980393167,0.0012,2804.5,2803.9,0.406504]
[1763980393365,0.0012,2804.5,2803.9,0.001]
[1763980394079,0.0012,2804.5,2803.9,0.101]
[1763980394280,0.0012,2804.5,2803.9,0.001]
[1763980394455,0.0012,2804.5,2803.9,0.101]
[1763980395068,0.0012,2804.5,2803.9,0.001]
[1763980395588,0.0012,2804.5,2803.9,0.101]
[1763980395883,0.0012,2804.5,2803.9,0.001]
[1763980399380,7.13260062,2804.4,2803.9,0.001]
[1763980399580,1.95237933,2804.3,2803.9,0.001]
[1763980399887,0.33200663,2804.2,2803.9,0.001]
[1763980400390,0.405504,2804.1,2803.9,0.001]
[1763980401392,0.405504,2804.1,2803.6,0.001]
[1763980401581,8.44509726,2803.7,2803.6,0.001]
[1763980401886,9.62161362,2803.7,2803.6,0.001]
[1763980402187,1.75150237,2803.7,2803.6,0.001]
[1763980402484,0.90699264,2803.7,2803.6,0.001]
[1763980407789,8.03959326,2803.7,2803.6,0.001]
[1763980409018,8.77659243,2803.7,2803.6,0.001]
[1763980410425,8.77579243,2803.7,2803.6,0.001]
[1763980411423,0.405504,2803.6,2803.3,0.001]
[1763980411627,1.61457841,2803.6,2803.3,0.001]
[1763980411926,0.87757924,2803.6,2803.3,0.001]
[1763980412250,7.13260062,2804.1,2803.3,0.001]
[1763980412432,0.33187798,2804.0,2803.3,0.001]
[1763980412594,0.0012,2804.5,2803.3,0.001]
[1763980412595,0.33187798,2804.2,2803.3,0.001]
[1763980412794,0.405504,2804.4,2803.3,0.001]
[1763980413021,0.73738198,2804.4,2803.3,0.001]
[1763980413222,0.33187798,2804.4,2803.3,0.001]
[1763980413523,0.74656786,2804.4,2803.3,0.001]
[1763980413733,0.33187798,2804.3,2803.3,0.001]
[1763980417438,0.405504,2804.2,2803.3,0.001]
[1763980417613,7.13260062,2804.1,2803.3,0.001]
[1763980418348,0.33190891,2804.0,2803.3,0.001]
[1763980418643,0.74645095,2803.9,2803.3,0.001]
[1763980418843,0.0012,2804.5,2803.3,0.001]
[1763980419249,0.406704,2804.5,2803.3,0.001]
[1763980419422,0.73867615,2804.5,2803.3,0.001]
[1763980420249,1.64566879,2804.5,2803.3,0.001]
[1763980420451,0.33197215,2804.4,2803.3,0.001]
[1763980422112,0.33241508,2804.4,2803.3,0.001]
[1763980424278,0.33241508,2804.3,2803.3,0.001]
[1763980424594,0.33241508,2804.4,2803.3,0.001]
[1763980424880,0.33241508,2804.3,2803.3,0.001]
[1763980425075,0.33241508,2804.4,2803.3,0.001]
[1763980425286,0.33241508,2804.3,2803.3,0.001]
[1763980425429,0.33241508,2804.2,2803.3,0.001]
[1763980425635,0.33241508,2804.4,2803.3,0.001]
[1763980425874,0.33241508,2804.3,2803.3,0.001]
[1763980426032,0.33241508,2804.2,2803.3,0.001]
[1763980426233,0.33241508,2804.4,2803.3,0.001]
[1763980426557,0.33241508,2804.3,2803.3,0.001]
[1763980426756,0.33241508,2804.2,2803.3,0.001]
[1763980427066,0.33241508,2804.1,2803.3,0.001]
[1763980427368,0.33241508,2804.0,2803.3,0.001]
[1763980427665,0.33241508,2804.4,2803.3,0.001]
[1763980427869,0.33241508,2804.3,2803.3,0.001]
[1763980428032,0.33241508,2804.2,2803.3,0.001]
[1763980428230,0.33241508,2804.1,2803.3,0.001]
[1763980428475,0.33241508,2804.0,2803.3,0.001]
[1763980428635,0.33241508,2804.4,2803.3,0.001]
[1763980428831,0.33241508,2804.3,2803.3,0.001]
[1763980429071,0.33241508,2804.2,2803.3,0.001]
[1763980429364,0.90819264,2804.5,2803.3,0.001]
[1763980429365,0.33241508,2804.1,2803.3,0.001]
[1763980429570,1.13649441,2804.4,2803.3,0.001]
[1763980429734,0.33241508,2804.3,2803.3,0.001]
[1763980429934,0.33241508,2804.2,2803.3,0.001]
[1763980430156,0.33241508,2804.1,2803.3,0.001]
[1763980430370,1.23940772,2804.0,2803.3,0.001]
[1763980430577,1.16961591,2803.9,2803.3,0.001]
[1763980430749,0.33241508,2803.8,2803.3,0.001]
[1763980431586,0.33241508,2803.7,2803.3,0.001]
[1763980431883,0.33241508,2803.6,2803.3,0.001]
[1763980432062,0.33241508,2803.8,2803.3,0.001]
[1763980432269,0.33241508,2803.7,2803.3,0.001]
[1763980432438,0.33241508,2803.6,2803.3,0.001]
[1763980432792,0.33241508,2803.5,2803.3,0.001]
[1763980432939,0.33241508,2803.4,2803.3,0.001]
[1763980433140,1.16961591,2803.4,2803.3,0.001]
[1763980434166,0.33161508,2803.4,2803.3,0.001]
[1763980434368,1.1753156,2804.0,2803.3,0.001]
[1763980434570,0.7698116,2803.9,2803.3,0.001]
[1763980434754,0.7698116,2803.8,2803.3,0.001]
[1763980434956,0.405504,2804.0,2803.3,0.001]
[1763980435395,1.31249664,2803.7,2803.3,0.001]
[1763980435687,0.84450973,2803.6,2803.3,0.001]
[1763980435980,0.405504,2803.5,2803.3,0.001]
[1763980438756,1.17503167,2803.5,2803.3,0.001]
[1763980440200,0.76952767,2803.4,2803.3,0.001]
[1763980440794,0.405504,2803.1,2803.0,0.001]
[1763980440994,9.21462493,2803.1,2803.0,0.001]
[1763980441400,9.35769488,2803.1,2803.0,0.001]
[1763980442703,1.31249664,2803.0,2802.7,0.001]
[1763980442856,0.405504,2802.8,2802.7,0.001]
[1763980443058,0.65425683,2802.8,2802.7,0.001]
[1763980445814,0.65425683,2802.8,2802.4,0.001]
[1763980445815,0.24875283,2802.8,2802.4,0.001]
[1763980446010,14.23777026,2802.5,2800.0,0.001]
[1763980446206,0.90699264,2802.3,2800.0,0.001]
[1763980446510,0.73778214,2802.2,2800.1,3.97675593]
[1763980446709,0.33227814,2802.1,2800.3,0.405504]
[1763980446909,0.405504,2802.3,2800.3,7.54755657]
[1763980447210,0.27362737,2802.2,2800.1,0.405504]
[1763980447364,0.60611497,2802.2,2800.0,3.9778671]
[1763980447565,0.405504,2802.1,2800.2,0.405504]
[1763980447810,0.7379916,2802.1,2800.2,0.405504]
[1763980447966,0.7379916,2802.1,2800.1,0.405504]
[1763980448404,0.7379916,2802.1,2800.0,0.001]
[1763980448405,0.7379916,2802.1,2801.4,0.001]
[1763980450278,4.45260424,2802.1,2801.4,0.001]
[1763980450471,4.9252274,2802.1,2801.4,0.001]
[1763980450673,0.405504,2801.9,2801.4,0.001]
[1763980451021,8.03959326,2801.8,2801.4,0.001]
[1763980451180,8.37208086,2801.8,2801.4,0.001]
[1763980452614,1.31249664,2801.8,2801.4,0.001]
[1763980452771,2.11344465,2801.8,2801.4,0.001]
[1763980453801,1.70794065,2801.8,2801.4,0.001]
[1763980457443,2.11344465,2801.8,2801.4,0.001]
[1763980458015,2.11264465,2801.8,2801.4,0.001]
[1763980458240,2.44461444,2801.8,2801.4,0.001]
[1763980458403,7.10248743,2801.5,2801.4,0.001]
[1763980459912,8.00948007,2801.5,2801.4,0.001]
[1763980461341,8.34180444,2801.5,2801.4,0.001]
[1763980461841,0.405504,2801.3,2800.0,0.001]
[1763980462041,0.90699264,2800.9,2800.0,0.001]
[1763980462340,0.76039761,2800.8,2800.0,0.001]
[1763980463353,1.31249664,2801.3,2800.0,0.001]
[1763980463557,0.33240138,2801.2,2800.0,0.001]
[1763980463758,0.90699264,2801.3,2800.0,0.001]
[1763980464966,6.69698343,2801.8,2800.2,0.1]
[1763980465118,0.61574123,2802.1,2800.5,0.1]
[1763980465454,0.61574123,2802.1,2800.0,0.90799264]
[1763980465455,1.0640481,2802.0,2801.4,0.001]
[1763980465657,0.33277563,2801.9,2801.4,0.001]
[1763980465837,0.73827963,2801.9,2801.4,0.001]
[1763980466218,0.33277563,2801.9,2801.4,0.001]
[1763980466449,0.90699264,2801.7,2801.4,0.001]
[1763980466647,1.09317324,2801.6,2801.4,0.001]
[1763980466815,0.76039761,2801.6,2801.4,0.001]
[1763980467212,0.73845157,2801.5,2801.4,0.001]
[1763980468214,0.73862642,2801.5,2801.4,0.001]
[1763980469147,0.88178445,2801.5,2801.4,0.001]
[1763980469345,2.81188766,2801.5,2801.4,0.001]
[1763980472263,2.66872963,2801.5,2801.4,0.001]
[1763980473261,9.36571306,2801.5,2801.4,0.001]
[1763980474968,9.50886647,2801.5,2801.4,0.001]
[1763980475170,9.36571306,2801.5,2801.4,0.001]
[1763980477037,10.32775743,2801.5,2801.4,0.001]
[1763980477568,10.47091084,2801.5,2801.4,0.001]
[1763980477867,0.405504,2801.3,2801.1,0.001]
[1763980478024,0.73862642,2801.2,2801.1,0.001]
[1763980481295,0.33312242,2801.2,2801.1,0.001]
[1763980481775,0.33232242,2801.2,2801.1,0.001]
[1763980483146,0.76947711,2801.6,2801.1,0.001]
[1763980483362,0.002,2801.8,2801.1,0.001]
[1763980483972,0.7715395,2801.8,2801.1,0.001]
[1763980484277,0.002,2801.8,2801.1,0.001]
[1763980484490,0.002,2801.5,2801.1,0.001]
[1763980484786,7.60397607,2801.2,2801.1,0.001]
[1763980484983,9.60193297,2801.2,2801.1,0.001]
[1763980485159,1.66739025,2801.2,2801.1,0.001]
[1763980485487,0.90699264,2801.2,2801.1,0.001]
[1763980486379,0.002,2801.5,2801.1,0.001]
[1763980494191,0.002,2801.5,2801.1,0.101]
[1763980494490,0.002,2801.5,2801.1,0.001]
[1763980494796,0.002,2801.5,2801.1,0.101]
[1763980495877,0.002,2801.5,2801.1,0.001]
[1763980499356,0.002,2801.5,2801.1,0.101]
[1763980500604,0.002,2801.5,2801.1,0.001]
[1763980502096,0.002,2801.5,2801.3,0.1]
[1763980502667,0.002,2801.5,2801.4,0.1]
[1763980503311,0.002,2801.5,2801.1,0.001]
[1763980503595,0.405504,2801.3,2801.1,0.001]
[1763980503807,1.20685998,2801.3,2801.1,0.001]
[1763980503994,0.94998995,2801.2,2801.1,0.001]
[1763980504381,0.21138526,2801.2,2801.1,0.001]
[1763980505268,0.90699264,2801.4,2801.1,0.001]
[1763980505472,0.002,2801.5,2801.1,0.001]
[1763980507520,0.90899264,2801.5,2801.1,0.001]
[1763980508414,0.002,2801.5,2801.1,0.001]
[1763980518537,0.002,2801.5,2801.1,0.101]
[1763980519499,0.002,2801.5,2801.1,0.001]
[1763980521114,0.002,2801.5,2801.1,0.44220426]
[1763980521319,0.002,2801.5,2801.4,0.1]
[1763980521740,0.002,2801.5,2801.4,0.47055594]
[1763980522100,0.002,2801.5,2801.2,0.1]
[1763980523403,0.002,2801.5,2801.1,0.001]
[1763980524204,0.002,2801.5,2801.3,0.1]
[1763980524410,0.002,2801.5,2801.4,0.1]
[1763980526144,0.002,2801.5,2801.3,0.405504]
[1763980526735,0.002,2801.5,2801.2,0.1]
[1763980526901,0.002,2801.5,2801.1,0.001]
[1763980528433,0.002,2801.5,2801.4,30.1]
[1763980528599,0.002,2801.8,2801.7,1.41249664]
[1763980528811,0.002,2802.1,2802.0,11.79924864]
[1763980529011,0.5620244,2803.8,2803.2,0.1]
[1763980529217,0.5612244,2803.8,2803.4,0.1]
[1763980529414,0.5612244,2803.8,2803.6,3.56684263]
[1763980529649,0.5612244,2803.8,2803.7,2.16642469]
[1763980529859,0.0012,2803.8,2803.7,2.16642469]
[1763980531225,0.0012,2803.8,2803.7,4.74203769]
[1763980532136,0.0012,2803.8,2803.7,5.7331401]
[1763980532345,0.0012,2803.8,2803.7,9.8230961]
[1763980533217,0.0012,2803.8,2803.7,13.1988271]
[1763980533414,0.0012,2803.8,2803.7,12.3050041]
[1763980533655,0.0012,2803.8,2803.7,0.75392805]
[1763980533832,0.0012,2803.8,2803.5,0.5612244]
[1763980534149,0.0012,2803.8,2803.7,0.1]
[1763980536418,0.0012,2803.8,2803.7,0.505504]
[1763980536738,0.0012,2803.8,2803.7,4.07221941]
[1763980536932,0.0012,2803.8,2803.7,11.08873741]
[1763980537147,0.0012,2803.8,2803.7,11.86057996]
[1763980537456,0.0012,2803.8,2803.7,10.63124896]
[1763980538056,0.0012,2803.8,2803.7,36.50089196]
[1763980538634,0.0012,2803.8,2803.7,8.90152696]
[1763980539034,0.0012,2803.8,2803.7,21.08126496]
[1763980539234,0.0012,2803.8,2803.7,12.55932196]
[1763980539442,0.0012,2803.8,2803.7,10.6535112]
[1763980539740,0.0012,2803.8,2803.7,9.7178282]
[1763980540138,0.0012,2803.8,2803.7,6.6437912]
[1763980540355,0.0012,2803.8,2803.7,3.07707579]
[1763980540641,0.0012,2803.8,2803.7,1.55539588]
[1763980541039,0.0012,2803.8,2803.7,0.14289924]
[1763980541338,0.0012,2803.8,2803.1,7.14874971]
[1763980541339,0.0012,2803.8,2803.6,0.1]
[1763980542266,0.0012,2803.8,2803.2,0.14294316]
[1763980542470,0.0012,2803.8,2803.5,0.1]
[1763980543632,0.0012,2803.8,2803.7,0.1]
[1763980544699,0.0012,2803.8,2803.5,0.1]
[1763980547194,0.0012,2803.8,2803.2,0.14294316]
[1763980547195,0.0012,2803.8,2803.2,0.24294316]
[1763980547401,0.0012,2803.8,2803.2,0.14294316]
[1763980547567,0.0012,2803.8,2803.7,0.1]
[1763980548403,0.0012,2803.8,2803.3,0.03567224]
[1763980548570,0.0012,2803.8,2803.3,0.46530241]
[1763980548765,0.0012,2803.8,2803.6,0.1]
[1763980549302,0.0012,2803.8,2803.3,0.1]
[1763980550095,0.0012,2803.8,2803.2,0.1]
[1763980550290,0.0012,2803.8,2803.0,0.1]
[1763980550599,0.0012,2803.8,2803.0,0.24296717]
[1763980550804,0.0012,2803.8,2803.0,0.1]
[1763980551381,0.0012,2803.8,2803.6,0.001]
[1763980552974,0.0004,2803.8,2803.6,0.001]
[1763980559318,0.33218059,2803.8,2803.6,0.001]
[1763980559528,0.0004,2803.8,2803.6,0.001]
[1763980569439,0.0004,2803.8,2803.7,0.1]
[1763980570110,0.0004,2803.8,2803.7,0.46689301]
[1763980571102,0.0004,2803.8,2803.7,0.1]
[1763980572237,0.0004,2803.8,2803.7,3.66671541]
[1763980572827,0.0004,2803.8,2803.7,0.1]
[1763980573537,0.0004,2803.8,2803.7,3.66671541]
[1763980573705,0.0004,2803.8,2803.7,0.1]
[1763980574115,0.0004,2803.8,2803.7,0.46689192]
[1763980574359,0.0004,2803.8,2803.7,0.1]
[1763980575266,0.0004,2803.8,2803.7,0.13566715]
[1763980575955,0.0004,2803.8,2803.7,0.1]
[1763980576721,0.0016,2804.1,2803.7,0.1]
[1763980578968,0.0016,2804.1,2803.6,0.001]
[1763980580033,0.0016,2804.1,2803.7,0.1]
[1763980581377,0.0016,2804.1,2803.6,0.001]
[1763980591362,0.0016,2804.1,2803.8,0.1]
[1763980596390,0.0016,2804.1,2804.0,0.1]
[1763980598159,0.0016,2804.1,2804.0,0.55735159]
[1763980598395,0.0016,2804.1,2804.0,0.1]
[1763980598785,0.0016,2804.1,2804.0,1.00699264]
[1763980598991,0.0016,2804.1,2804.0,0.1]
[1763980599807,0.0016,2804.1,2804.0,0.13566333]
[1763980600135,0.0016,2804.1,2804.0,4.60898977]
[1763980600314,0.0016,2804.1,2804.0,5.42653719]
[1763980600471,0.0016,2804.1,2804.0,5.83204119]
[1763980600815,0.0016,2804.1,2804.0,2.23004406]
[1763980601016,0.0008,2804.1,2804.0,2.23004406]
[1763980601301,0.0008,2804.1,2804.0,1.41249664]
[1763980602204,0.0008,2804.1,2804.0,0.505504]
[1763980603508,0.0008,2804.1,2804.0,15.40405444]
[1763980603803,0.0008,2804.1,2804.0,1.41249664]
[1763980604028,0.0008,2804.1,2804.0,1.41349664]
[1763980604226,0.0008,2804.1,2804.0,4.57084018]
[1763980604398,0.0008,2804.1,2804.0,5.47783282]
[1763980604902,0.0008,2804.1,2804.0,1.91149902]
[1763980605106,0.0008,2804.1,2804.0,5.47783282]
[1763980605304,0.0008,2804.1,2804.0,4.97983044]
[1763980605535,0.0008,2804.1,2804.0,1.04365597]
[1763980605933,0.0008,2804.1,2804.0,1.00799264]
[1763980606412,0.0008,2804.1,2804.0,0.90799264]
[1763980606611,0.0008,2804.1,2804.0,1.00799264]
[1763980610230,0.0008,2804.1,2804.0,1.82208304]
[1763980611404,0.0008,2804.1,2804.0,1.72208304]
[1763980611605,0.0008,2804.1,2804.0,0.90799264]
[1763980611832,0.0008,2804.1,2804.0,1.00799264]
[1763980612628,0.0008,2804.1,2804.0,4.57432644]
[1763980612804,0.0008,2804.1,2804.0,1.04365597]
[1763980614138,0.0008,2804.1,2804.0,4.83598977]
[1763980614326,0.0008,2804.1,2804.0,2.12420481]
[1763980614526,0.0008,2804.1,2804.0,2.26712652]
[1763980616331,0.0008,2804.1,2804.0,5.83346032]
[1763980616838,0.0008,2804.1,2804.0,8.25919432]
[1763980617143,0.0008,2804.1,2804.0,6.20330099]
[1763980617346,0.0008,2804.1,2804.0,9.39542332]
[1763980617517,0.0008,2804.1,2804.0,8.31805599]
[1763980618247,0.0008,2804.1,2804.0,6.20330099]
[1763980618451,0.0008,2804.1,2804.0,8.82247332]
[1763980618616,0.0008,2804.1,2804.0,8.78680999]
[1763980618814,0.0008,2804.1,2804.0,8.33345999]
[1763980619845,0.0008,2804.1,2804.0,8.38092699]
[1763980620051,0.0008,2804.1,2804.0,6.20330099]
[1763980620215,0.0008,2804.1,2804.0,2.63696719]
[1763980620417,0.0008,2804.1,2804.0,6.20330099]
[1763980620752,0.0008,2804.1,2804.0,5.79779699]
[1763980620951,0.0008,2804.1,2804.0,2.23146319]
[1763980621410,0.0008,2804.1,2804.0,5.79779699]
[1763980621611,0.0008,2804.1,2804.0,2.26712652]
[1763980621915,0.0008,2804.1,2804.0,5.83346032]
[1763980622867,0.0008,2804.1,2804.0,10.13069032]
[1763980623149,0.002,2804.3,2804.2,10.48097164]
[1763980623337,0.002,2804.3,2804.2,12.49603228]
[1763980624016,0.002,2804.3,2804.2,9.45104828]
[1763980624219,0.0012,2804.3,2804.2,6.70871228]
[1763980624445,0.0012,2804.3,2804.2,6.20097228]
[1763980624659,0.0012,2804.3,2804.2,3.42755728]
[1763980624855,0.0012,2804.3,2804.2,1.41249664]
[1763980625030,0.0012,2804.3,2804.2,1.63849664]
[1763980625829,0.0012,2804.3,2804.2,1.13299264]
[1763980626033,0.0012,2804.3,2804.2,1.23299264]
[1763980627057,0.0012,2804.3,2804.2,1.13299264]
[1763980627458,0.0012,2804.3,2804.2,1.23299264]
[1763980628425,0.0012,2804.3,2804.2,1.72731528]
[1763980628970,0.0012,2804.3,2804.2,1.23299264]
[1763980629774,0.0012,2804.3,2804.2,1.13299264]
[1763980632339,0.0012,2804.3,2804.1,0.226]
[1763980633367,0.0012,2804.3,2804.0,0.001]
[1763980639369,0.0012,2804.3,2804.0,0.101]
[1763980639762,0.0012,2804.3,2804.0,0.001]
[1763980646400,0.18888344,2804.3,2804.0,0.001]
[1763980647865,0.0012,2804.3,2804.0,0.001]
[1763980648219,0.0004,2804.3,2804.2,0.1]
[1763980650417,0.0004,2804.3,2804.0,0.14392733]
[1763980650922,0.0004,2804.3,2804.2,0.1]
[1763980651606,0.0004,2804.3,2804.0,0.14392733]
[1763980651810,0.0004,2804.3,2804.2,0.1]
[1763980652223,0.0004,2804.3,2804.1,0.1]
[1763980652419,0.0004,2804.3,2804.2,0.1]
[1763980652803,0.0004,2804.3,2804.2,0.57527898]
[1763980653923,0.0004,2804.3,2804.2,1.41249664]
[1763980654128,0.0004,2804.3,2804.2,5.01423688]
[1763980654314,0.0004,2804.3,2804.2,7.61486888]
[1763980654627,0.0004,2804.3,2804.2,7.57920809]
[1763980655125,0.0004,2804.3,2804.2,24.39490432]
[1763980655302,0.0004,2804.3,2804.2,26.46016497]
[1763980655832,0.0004,2804.3,2804.2,24.17331897]
[1763980656327,0.0004,2804.3,2804.2,18.87949897]
[1763980657205,0.002,2804.4,2804.2,31.48643342]
[1763980657403,0.002,2804.4,2804.3,15.05667816]
[1763980657625,0.002,2804.4,2804.3,16.49529462]
[1763980657828,0.002,2804.4,2804.3,20.0612469]
[1763980658021,0.002,2804.4,2804.3,18.7706079]
[1763980658216,0.002,2804.4,2804.3,18.2912149]
[1763980658416,0.002,2804.4,2804.3,17.0383319]
[1763980659028,0.002,2804.4,2804.3,15.44894807]
[1763980659200,0.002,2804.4,2804.3,15.87257007]
[1763980659516,0.002,2804.4,2804.3,15.63973307]
[1763980659723,0.002,2804.4,2804.3,13.03102407]
[1763980660124,0.002,2804.4,2804.3,13.06076407]
[1763980661117,0.002,2804.4,2804.3,11.64023807]
[1763980661722,0.002,2804.4,2804.3,3.43913979]
[1763980661896,0.002,2804.4,2804.3,4.94281609]
[1763980662329,0.002,2804.4,2804.3,1.37686381]
[1763980663050,0.002,2804.4,2804.3,4.94281609]
[1763980663436,0.002,2804.4,2804.3,1.37686381]
[1763980664061,0.002,2804.4,2804.3,4.94281609]
[1763980664263,0.002,2804.4,2804.3,5.79371529]
[1763980664769,0.002,2804.4,2804.3,2.22776301]
[1763980664958,0.002,2804.4,2804.3,1.37686381]
[1763980665360,0.002,2804.4,2804.3,4.94281609]
[1763980665859,0.002,2804.4,2804.3,1.37686381]
[1763980666364,0.002,2804.4,2804.3,4.94281609]
[1763980667379,0.002,2804.4,2804.3,4.97847561]
[1763980667678,0.002,2804.4,2804.3,5.83292972]
[1763980667972,0.002,2804.4,2804.3,8.09511172]
[1763980668175,0.002,2804.4,2804.3,8.0594522]
[1763980668378,0.002,2804.4,2804.3,8.3649562]
[1763980668544,0.002,2804.4,2804.3,22.1981592]
[1763980668739,0.002,2804.4,2804.3,18.4916002]
[1763980669507,0.002,2804.4,2804.3,35.4087972]
[1763980669640,0.002,2804.4,2804.3,33.9684002]
[1763980670342,0.002,2804.4,2804.3,33.6756752]
[1763980670568,0.002,2804.4,2804.3,9.5415912]
[1763980671558,0.002,2804.4,2804.3,25.6906482]
[1763980671874,0.0012,2804.4,2804.3,25.1551422]
[1763980672244,0.0012,2804.4,2804.3,23.5029542]
[1763980672648,0.0012,2804.4,2804.3,30.5072412]
[1763980673370,0.0012,2804.4,2804.3,24.1890862]
[1763980673543,0.0012,2804.4,2804.3,31.0895052]
[1763980673945,0.0012,2804.4,2804.3,29.7096032]
[1763980674143,0.0012,2804.4,2804.3,26.3596102]
[1763980674644,0.0012,2804.4,2804.3,19.0530692]
[1763980675254,0.0012,2804.5,2804.3,19.0530692]
[1763980675478,0.0012,2804.5,2804.4,22.92377079]
[1763980675797,0.0012,2804.5,2804.4,22.64717154]
[1763980676698,0.0012,2804.5,2804.4,32.18360731]
[1763980676995,0.3327267,2806.9,2804.7,22.92453364]
[1763980677298,1.10093602,2807.4,2804.9,22.53090964]
[1763980677615,0.3332133,2807.3,2804.9,1.41249664]
[1763980677815,0.405504,2807.7,2806.1,0.1]
[1763980678022,1.26255337,2808.1,2806.1,0.1]
[1763980678023,0.3332133,2807.6,2806.2,0.226]
[1763980678163,0.3332133,2807.5,2806.2,0.226]
[1763980678363,1.10145186,2807.7,2806.2,0.226]
[1763980678659,1.10121889,2807.6,2806.2,0.226]
[1763980678887,0.3332133,2807.5,2806.2,0.226]
[1763980679136,0.405504,2807.4,2806.2,0.226]
[1763980679278,0.7387173,2807.8,2806.2,0.326]
[1763980679598,0.3332133,2807.7,2806.2,0.326]
[1763980679801,0.405504,2807.6,2806.2,0.326]
[1763980680381,0.3332133,2807.6,2806.2,0.326]
[1763980680580,0.3332133,2807.7,2806.2,0.226]
[1763980680799,2.88306471,2808.5,2806.2,0.226]
[1763980680800,0.3332133,2807.9,2806.9,0.1]
[1763980681001,1.92395506,2809.2,2807.2,0.1]
[1763980681200,1.35252756,2809.1,2807.6,0.1]
[1763980681497,0.33252743,2809.0,2807.6,0.1]
[1763980681901,1.35124734,2809.1,2807.3,0.1]
[1763980682198,0.33252743,2809.0,2807.2,0.226]
[1763980682384,0.58504709,2809.1,2807.6,0.1]
[1763980682974,0.73767635,2809.0,2807.5,0.1]
[1763980683176,0.73767635,2809.0,2807.2,0.226]
[1763980683177,0.405504,2808.8,2807.2,0.226]
[1763980683410,0.33217235,2808.8,2807.2,0.326]
[1763980683587,0.405504,2808.8,2807.4,0.1]
[1763980683992,0.405504,2809.0,2807.2,0.226]
[1763980684308,0.405504,2809.0,2807.2,0.326]
[1763980685079,0.91971918,2809.5,2807.4,7.13205123]
[1763980685080,0.74504678,2809.5,2807.4,7.13205123]
[1763980685436,0.226,2810.0,2808.0,0.1]
[1763980685727,0.226,2810.0,2808.2,0.1]
[1763980686095,0.405504,2809.9,2808.2,0.1]
[1763980686292,0.33130729,2809.9,2808.2,0.1]
[1763980686497,0.55730729,2810.0,2808.2,0.1]
[1763980686826,0.33130729,2809.9,2808.2,0.1]
[1763980687031,0.405504,2809.8,2807.9,0.226]
[1763980687242,0.405504,2809.6,2807.9,0.226]
[1763980687389,0.405504,2809.6,2808.1,0.1]
[1763980688505,0.405504,2809.6,2808.3,0.1]
[1763980688695,0.407504,2809.9,2808.3,0.1]
[1763980689214,0.407504,2809.9,2807.7,0.226]
[1763980689516,0.407504,2809.9,2808.1,0.1]
[1763980691224,1.31249664,2809.7,2807.7,0.51467482]
[1763980691426,0.405504,2809.7,2807.7,0.51467482]
[1763980691637,0.405504,2809.7,2807.7,1.58515334]
[1763980691828,0.405504,2809.7,2807.8,0.2492146]
[1763980692128,0.002,2809.9,2808.5,0.1]
[1763980692315,0.002,2809.9,2808.7,0.1]
[1763980693905,0.002,2809.9,2808.6,0.1]
[1763980694405,0.002,2809.9,2808.3,0.226]
[1763980694615,0.002,2809.9,2808.4,0.1]
[1763980695462,0.90899264,2809.9,2807.6,3.56175042]
[1763980695600,1.20880839,2809.8,2807.7,0.226]
[1763980695801,1.20880839,2809.8,2807.9,0.226]
[1763980696041,0.90699264,2809.6,2807.7,0.1]
[1763980696239,0.226,2809.5,2807.7,0.1]
[1763980696812,0.226,2809.5,2807.9,0.1]
[1763980697534,0.405504,2809.4,2807.9,0.1]
[1763980699047,0.405504,2809.4,2807.6,0.0356176]
[1763980699426,0.405504,2809.4,2807.8,0.1]
[1763980699927,0.405504,2809.4,2807.7,0.45044977]
[1763980699928,0.405504,2809.4,2807.9,0.1]
[1763980700949,0.405504,2809.4,2807.8,0.1]
[1763980702755,0.405504,2809.4,2807.5,4.46886441]